[Event "NK ABC Kwalificatie 2"]
[Site "Zoetermeer, Netherlands"]
[Date "2025.01.05"]
[Round "6.2"]
[White "Kleibeuker, Mika"]
[Black "Bakija, Alan"]
[Result "1/2-1/2"]
[TimeControl "55+10"]
[WhiteFideId "8577228"]
[BlackFideId "8629346"]
[WhiteElo "1980"]
[BlackElo "2247"]

1. d4 {[%clk 00:55:17]} {[%emt 00:00:02]} d6 {[%clk 00:55:15]} {[%emt
00:00:04]} 2. Nf3 {[%clk 00:54:30]} {[%emt 00:00:57]} Nf6 {[%clk 00:55:20]}
{[%emt 00:00:05]} 3. g3 {[%clk 00:54:35]} {[%emt 00:00:06]} g6 {[%clk
00:55:24]} {[%emt 00:00:06]} 4. Bg2 {[%clk 00:54:40]} {[%emt 00:00:05]} Bg7
{[%clk 00:55:30]} {[%emt 00:00:04]} 5. O-O {[%clk 00:54:46]} {[%emt 00:00:04]}
O-O {[%clk 00:55:35]} {[%emt 00:00:05]} 6. b3 {[%clk 00:54:36]} {[%emt
00:00:21]} Nbd7 {[%clk 00:54:10]} {[%emt 00:01:34]} 7. Bb2 {[%clk 00:54:39]}
{[%emt 00:00:07]} c6 {[%clk 00:53:49]} {[%emt 00:00:31]} 8. c4 {[%clk
00:54:21]} {[%emt 00:00:28]} Qc7 {[%clk 00:53:44]} {[%emt 00:00:16]} 9. Qc2
{[%clk 00:53:21]} {[%emt 00:01:10]} Re8 {[%clk 00:51:00]} {[%emt 00:02:54]} 10.
e4 {[%clk 00:48:38]} {[%emt 00:04:52]} e5 {[%clk 00:50:39]} {[%emt 00:00:32]}
11. dxe5 {[%clk 00:48:42]} {[%emt 00:00:05]} dxe5 {[%clk 00:48:55]} {[%emt
00:01:54]} 12. Rd1 {[%clk 00:48:30]} {[%emt 00:00:22]} Nf8 {[%clk 00:47:33]}
{[%emt 00:01:33]} 13. Nbd2 {[%clk 00:47:45]} {[%emt 00:00:55]} Bg4 {[%clk
00:44:44]} {[%emt 00:02:59]} 14. h3 {[%clk 00:47:20]} {[%emt 00:00:35]} Bxf3
{[%clk 00:44:49]} {[%emt 00:00:04]} 15. Nxf3 {[%clk 00:47:26]} {[%emt
00:00:05]} N6d7 {[%clk 00:44:46]} {[%emt 00:00:13]} 16. a3 {[%clk 00:41:42]}
{[%emt 00:05:53]} Ne6 {[%clk 00:43:20]} {[%emt 00:01:35]} 17. b4 {[%clk
00:40:35]} {[%emt 00:01:19]} c5 {[%clk 00:41:58]} {[%emt 00:01:32]} 18. bxc5
{[%clk 00:33:02]} {[%emt 00:07:42]} Nexc5 {[%clk 00:40:35]} {[%emt 00:01:34]}
19. Nd2 {[%clk 00:30:51]} {[%emt 00:02:20]} Rac8 {[%clk 00:39:31]} {[%emt
00:01:14]} 20. Nf1 {[%clk 00:29:52]} {[%emt 00:01:09]} Nb6 {[%clk 00:38:31]}
{[%emt 00:01:10]} 21. Ne3 {[%clk 00:28:41]} {[%emt 00:01:21]} Nca4 {[%clk
00:37:45]} {[%emt 00:00:56]} 22. Rab1 {[%clk 00:27:47]} {[%emt 00:01:04]} Bh6
{[%clk 00:27:27]} {[%emt 00:10:27]} 23. Ng4 {[%clk 00:26:56]} {[%emt 00:01:02]}
Bg7 {[%clk 00:27:07]} {[%emt 00:00:30]} 24. Ne3 {[%clk 00:27:01]} {[%emt
00:00:05]} Red8 {[%emt 00:05:11]} 25. Ba1 {[%clk 00:22:38]} Qc6 {[%clk
00:24:46]} {[%emt 00:02:04]} 26. Nd5 {[%clk 00:21:21]} {[%emt 00:01:27]} Nxd5
{[%clk 00:24:24]} {[%emt 00:00:31]} 27. exd5 {[%clk 00:21:24]} {[%emt
00:00:08]} Qd7 {[%clk 00:23:33]} {[%emt 00:01:00]} 28. Qe2 {[%clk 00:17:42]}
{[%emt 00:03:52]} Re8 {[%clk 00:21:35]} {[%emt 00:02:08]} 29. d6 {[%clk
00:16:21]} {[%emt 00:01:31]} b6 {[%clk 00:19:28]} {[%emt 00:02:17]} 30. Rd5
{[%clk 00:14:42]} {[%emt 00:01:49]} Rc5 {[%emt 00:01:28]} 31. Rbd1 {[%clk
00:13:48]} Rxd5 {[%clk 00:17:17]} {[%emt 00:02:06]} 32. Rxd5 {[%clk 00:13:30]}
{[%emt 00:00:29]} Re6 {[%clk 00:16:19]} {[%emt 00:01:07]} 33. h4 {[%clk
00:12:19]} {[%emt 00:01:21]} Rxd6 {[%clk 00:15:03]} {[%emt 00:01:26]} 34. Bxe5
{[%clk 00:10:11]} {[%emt 00:02:19]} Rxd5 {[%clk 00:09:06]} {[%emt 00:06:07]} 35.
Bxd5 {[%clk 00:10:16]} {[%emt 00:00:05]} Qe7 {[%clk 00:06:46]} {[%emt
00:02:29]} 36. Qd1 {[%clk 00:08:14]} {[%emt 00:02:13]} Bxe5 {[%clk 00:04:15]}
{[%emt 00:02:41]} 37. Qxa4 {[%clk 00:08:18]} {[%emt 00:00:05]} Bd6 {[%clk
00:04:12]} {[%emt 00:00:13]} 38. h5 {[%clk 00:05:53]} {[%emt 00:02:35]} gxh5
{[%clk 00:04:17]} {[%emt 00:00:06]} 39. Qd1 {[%clk 00:06:00]} {[%emt 00:00:03]}
Bc5 {[%clk 00:02:39]} {[%emt 00:01:48]} 40. Qf3 {[%clk 00:05:06]} {[%emt
00:01:03]} Bxa3 {[%clk 00:02:01]} {[%emt 00:00:48]} 41. Qxh5 {[%clk 00:05:04]}
{[%emt 00:00:13]} Bb2 {[%clk 00:02:02]} {[%emt 00:00:08]} 42. Qf5 {[%clk
00:04:20]} {[%emt 00:00:54]} h6 {[%clk 00:00:47]} {[%emt 00:01:25]} 43. Qc8+
{[%clk 00:04:17]} {[%emt 00:00:14]} Kg7 {[%clk 00:00:51]} {[%emt 00:00:06]} 44.
Qg4+ {[%clk 00:04:23]} {[%emt 00:00:03]} Qg5 {[%clk 00:00:40]} {[%emt
00:00:21]} 45. Qd7 {[%clk 00:02:39]} {[%emt 00:01:54]} Qf6 {[%clk 00:00:36]}
{[%emt 00:00:14]} 46. Qxa7 {[%clk 00:02:01]} {[%emt 00:00:49]} Bd4 {[%clk
00:00:38]} {[%emt 00:00:07]} 47. Qa2 {[%clk 00:02:10]} {[%emt 00:00:02]} Qe5
{[%clk 00:00:28]} {[%emt 00:00:19]} 48. Kg2 {[%clk 00:02:07]} {[%emt 00:00:13]}
Qf6 {[%clk 00:00:33]} {[%emt 00:00:05]} 1/2-1/2

[Event "NK ABC Kwalificatie 2"]
[Site "Zoetermeer, Netherlands"]
[Date "2025.01.05"]
[Round "6.3"]
[White "Damen, Josephine"]
[Black "Kumar, Prajit Sai"]
[Result "0-1"]
[TimeControl "55+10"]
[WhiteFideId "8647606"]
[BlackFideId "8767979"]
[WhiteElo "1891"]
[BlackElo "2210"]

1. e4 {[%clk 00:55:18]} c5 {[%clk 00:55:17]} {[%emt 00:00:04]} 2. Nf3 {[%clk
00:55:25]} {[%emt 00:00:04]} Nc6 {[%clk 00:55:24]} {[%emt 00:00:04]} 3. d4
{[%clk 00:55:31]} {[%emt 00:00:04]} cxd4 {[%clk 00:55:30]} {[%emt 00:00:04]} 4.
Nxd4 {[%clk 00:55:37]} {[%emt 00:00:04]} Nf6 {[%clk 00:55:34]} {[%emt
00:00:05]} 5. Nc3 {[%clk 00:55:42]} {[%emt 00:00:04]} d6 {[%clk 00:55:41]}
{[%emt 00:00:04]} 6. f3 {[%clk 00:55:47]} {[%emt 00:00:06]} e5 {[%clk
00:55:43]} {[%emt 00:00:07]} 7. Nb3 {[%clk 00:55:44]} {[%emt 00:00:13]} Be6
{[%clk 00:55:46]} {[%emt 00:00:06]} 8. Nd5 {[%clk 00:50:25]} {[%emt 00:05:30]}
Be7 {[%clk 00:55:48]} {[%emt 00:00:08]} 9. Be3 {[%clk 00:49:54]} {[%emt
00:00:41]} O-O {[%clk 00:55:43]} {[%emt 00:00:16]} 10. Qd2 {[%clk 00:49:16]}
{[%emt 00:00:47]} a5 {[%clk 00:54:27]} {[%emt 00:01:27]} 11. Bb6 {[%clk
00:47:43]} {[%emt 00:01:42]} Qb8 {[%clk 00:47:01]} {[%emt 00:07:35]} 12. Nc7
{[%clk 00:41:12]} {[%emt 00:06:43]} a4 {[%clk 00:47:01]} {[%emt 00:00:10]} 13.
Nxa8 {[%clk 00:40:49]} {[%emt 00:00:33]} Qxa8 {[%clk 00:46:55]} {[%emt
00:00:15]} 14. Na5 {[%clk 00:39:53]} {[%emt 00:01:06]} d5 {[%clk 00:46:07]}
{[%emt 00:00:58]} 15. Nxc6 {[%clk 00:36:49]} {[%emt 00:03:14]} bxc6 {[%clk
00:46:13]} {[%emt 00:00:04]} 16. Qa5 {[%clk 00:28:27]} {[%emt 00:08:33]} dxe4
{[%clk 00:43:40]} {[%emt 00:02:42]} 17. fxe4 {[%clk 00:21:16]} {[%emt
00:07:21]} Nxe4 {[%clk 00:41:34]} {[%emt 00:02:16]} 18. Qxe5 {[%clk 00:17:04]}
{[%emt 00:04:23]} c5 {[%clk 00:31:50]} {[%emt 00:09:53]} 19. Bd3 {[%clk
00:14:09]} {[%emt 00:03:04]} Bh4+ {[%clk 00:28:45]} {[%emt 00:03:15]} 20. g3
{[%clk 00:10:33]} {[%emt 00:03:47]} Nxg3 {[%clk 00:27:11]} {[%emt 00:01:44]} 21.
O-O-O {[%clk 00:10:36]} {[%emt 00:00:07]} Nxh1 {[%clk 00:24:46]} {[%emt
00:02:34]} 22. Qh5 {[%clk 00:09:54]} {[%emt 00:00:53]} Bg5+ {[%clk 00:20:12]}
{[%emt 00:04:43]} 23. Qxg5 {[%clk 00:09:51]} {[%emt 00:00:15]} Nf2 {[%clk
00:20:13]} {[%emt 00:00:08]} 24. Bxh7+ {[%clk 00:06:14]} {[%emt 00:03:48]} Kxh7
{[%clk 00:20:08]} {[%emt 00:00:15]} 25. Qh4+ {[%clk 00:06:20]} {[%emt
00:00:03]} Kg8 {[%clk 00:20:06]} {[%emt 00:00:11]} 26. Qxf2 {[%clk 00:06:25]}
{[%emt 00:00:06]} Qe4 {[%clk 00:14:55]} {[%emt 00:05:22]} 27. Bxc5 {[%clk
00:04:00]} {[%emt 00:02:35]} Rc8 {[%clk 00:14:33]} {[%emt 00:00:31]} 28. Bd4
{[%clk 00:02:42]} {[%emt 00:01:29]} Bf5 {[%clk 00:14:23]} {[%emt 00:00:19]} 29.
Bc3 {[%clk 00:02:16]} {[%emt 00:00:37]} Bg6 {[%clk 00:11:21]} {[%emt 00:03:11]}
30. Rd4 {[%clk 00:01:07]} {[%emt 00:01:20]} Qh1+ {[%clk 00:10:17]} {[%emt
00:01:14]} 31. Rd1 {[%clk 00:01:14]} {[%emt 00:00:02]} Qe4 {[%clk 00:09:01]}
{[%emt 00:01:27]} 32. Rd4 {[%clk 00:01:23]} {[%emt 00:00:01]} Qc6 {[%clk
00:07:27]} {[%emt 00:01:44]} 33. Qh4 {[%clk 00:01:10]} {[%emt 00:00:23]} Re8
{[%clk 00:06:44]} {[%emt 00:00:53]} 34. Rd8 {[%clk 00:00:22]} {[%emt 00:00:58]}
Qh1+ {[%clk 00:06:11]} {[%emt 00:00:43]} 35. Be1 {[%clk 00:00:18]} {[%emt
00:00:14]} Qc6 {[%clk 00:06:04]} {[%emt 00:00:16]} 36. Bc3 {[%clk 00:00:27]}
{[%emt 00:00:02]} a3 {[%clk 00:05:19]} {[%emt 00:00:55]} 37. Qd4 {[%clk
00:00:16]} {[%emt 00:00:21]} Qh1+ {[%clk 00:04:10]} {[%emt 00:01:20]} 38. Qd1
{[%clk 00:00:21]} {[%emt 00:00:04]} axb2+ {[%clk 00:04:05]} {[%emt 00:00:16]}
39. Bxb2 {[%clk 00:00:15]} {[%emt 00:00:16]} Qe4 {[%clk 00:03:15]} {[%emt
00:00:59]} 40. Qd4 {[%clk 00:00:15]} {[%emt 00:00:10]} Qe1+ {[%clk 00:02:59]}
{[%emt 00:00:26]} 41. Qd1 {[%clk 00:00:24]} {[%emt 00:00:02]} Qe3+ {[%clk
00:03:08]} {[%emt 00:00:01]} 42. Kb1 {[%clk 00:00:15]} {[%emt 00:00:19]} Kh7
{[%clk 00:02:00]} {[%emt 00:01:18]} 43. Rxe8 {[%clk 00:00:15]} {[%emt
00:00:09]} Qxe8 {[%clk 00:02:09]} 44. Qf1 {[%clk 00:00:15]} {[%emt 00:00:10]}
Qc8 {[%clk 00:01:56]} {[%emt 00:00:24]} 45. Qf2 {[%clk 00:00:16]} {[%emt
00:00:08]} Qc4 {[%clk 00:01:42]} {[%emt 00:00:24]} 46. Qd2 {[%clk 00:00:16]}
{[%emt 00:00:10]} f6 {[%clk 00:01:34]} {[%emt 00:00:19]} 47. Qd1 {[%clk
00:00:15]} {[%emt 00:00:11]} Qe4 {[%clk 00:01:20]} {[%emt 00:00:23]} 48. a3
{[%clk 00:00:18]} {[%emt 00:00:08]} Kg8 {[%clk 00:01:03]} {[%emt 00:00:27]} 49.
Kc1 {[%emt 00:00:11]} Bf5 {[%clk 00:00:39]} {[%emt 00:00:33]} 50. Kb1 {[%clk
00:00:16]} {[%emt 00:00:12]} Qg2 {[%clk 00:00:27]} {[%emt 00:00:22]} 51. h4
{[%clk 00:00:14]} {[%emt 00:00:11]} Qe4 {[%clk 00:00:28]} {[%emt 00:00:09]} 52.
h5 {[%clk 00:00:15]} {[%emt 00:00:10]} Kh7 {[%clk 00:00:37]} {[%emt 00:00:02]}
53. Kc1 {[%clk 00:00:15]} {[%emt 00:00:09]} Kh6 {[%clk 00:00:27]} {[%emt
00:00:19]} 54. Bc3 {[%clk 00:00:17]} {[%emt 00:00:09]} Qc4 {[%clk 00:00:23]}
{[%emt 00:00:14]} 55. Qd4 {[%clk 00:00:13]} {[%emt 00:00:15]} Qf1+ {[%clk
00:00:20]} {[%emt 00:00:12]} 56. Kb2 {[%clk 00:00:13]} {[%emt 00:00:10]} Qb5+
{[%clk 00:00:29]} {[%emt 00:00:01]} 57. Bb4 {[%clk 00:00:20]} {[%emt 00:00:03]}
Kxh5 {[%clk 00:00:26]} {[%emt 00:00:13]} 58. Qd1+ {[%clk 00:00:20]} {[%emt
00:00:09]} Kg6 {[%clk 00:00:28]} {[%emt 00:00:08]} 59. Qg1+ {[%clk 00:00:25]}
{[%emt 00:00:05]} Kf7 {[%clk 00:00:22]} {[%emt 00:00:17]} 60. Qa7+ {[%clk
00:00:28]} {[%emt 00:00:07]} Kg6 {[%clk 00:00:16]} {[%emt 00:00:16]} 61. Qg1+
{[%clk 00:00:36]} {[%emt 00:00:02]} Kh7 {[%clk 00:00:19]} {[%emt 00:00:06]} 62.
Qh1+ {[%clk 00:00:36]} {[%emt 00:00:10]} Kg8 {[%clk 00:00:20]} {[%emt
00:00:09]} 63. Qa8+ {[%clk 00:00:43]} {[%emt 00:00:04]} Kf7 {[%clk 00:00:25]}
{[%emt 00:00:05]} 64. Qa7+ {[%clk 00:00:43]} {[%emt 00:00:10]} Bd7 {[%clk
00:00:28]} {[%emt 00:00:07]} 65. c4 {[%clk 00:00:26]} {[%emt 00:00:27]} Qc6
{[%clk 00:00:22]} {[%emt 00:00:17]} 66. Qc5 {[%clk 00:00:16]} {[%emt 00:00:20]}
Qg2+ {[%clk 00:00:28]} {[%emt 00:00:04]} 67. Kb3 {[%clk 00:00:21]} {[%emt
00:00:06]} Bg4 {[%clk 00:00:21]} {[%emt 00:00:16]} 68. Qe7+ {[%clk 00:00:16]}
{[%emt 00:00:15]} Kg6 {[%clk 00:00:21]} {[%emt 00:00:10]} 69. Qe8+ {[%clk
00:00:20]} {[%emt 00:00:06]} Kh7 {[%clk 00:00:24]} {[%emt 00:00:06]} 70. Qe1
{[%clk 00:00:17]} {[%emt 00:00:13]} Qh2 {[%clk 00:00:15]} {[%emt 00:00:19]} 71.
c5 {[%clk 00:00:14]} {[%emt 00:00:14]} Qh3+ {[%clk 00:00:13]} {[%emt 00:00:12]}
72. Ka4 {[%clk 00:00:17]} {[%emt 00:00:07]} Bd7+ {[%clk 00:00:22]} 73. Ka5
{[%clk 00:00:26]} Qd3 {[%clk 00:00:18]} {[%emt 00:00:14]} 74. Qh1+ {[%clk
00:00:25]} {[%emt 00:00:12]} Kg6 {[%clk 00:00:19]} {[%emt 00:00:09]} 75. Qb7
{[%clk 00:00:26]} {[%emt 00:00:09]} Bf5 {[%clk 00:00:15]} {[%emt 00:00:14]} 76.
c6 {[%clk 00:00:16]} {[%emt 00:00:20]} Be4 {[%clk 00:00:24]} 77. Qd7 {[%clk
00:00:15]} {[%emt 00:00:11]} Qc4 {[%clk 00:00:15]} {[%emt 00:00:19]} 78. c7
{[%clk 00:00:13]} {[%emt 00:00:12]} Bc6 {[%clk 00:00:14]} {[%emt 00:00:11]} 79.
Qxc6 {[%clk 00:00:11]} {[%emt 00:00:12]} Qxc6 {[%clk 00:00:22]} {[%emt
00:00:01]} 0-1

[Event "NK ABC Kwalificatie 2"]
[Site "Zoetermeer, Netherlands"]
[Date "2025.01.05"]
[Round "6.4"]
[White "Ramdien, Steven"]
[Black "Ramak, Vince"]
[Result "1-0"]
[TimeControl "55+10"]
[WhiteFideId "8722626"]
[BlackFideId "8984470"]
[WhiteElo "1780"]
[BlackElo "1969"]

1. e4 {[%clk 00:55:07]} {[%emt 00:00:12]} Nf6 {[%clk 00:55:13]} {[%emt
00:00:07]} 2. e5 {[%clk 00:55:05]} {[%emt 00:00:12]} Nd5 {[%clk 00:55:19]}
{[%emt 00:00:05]} 3. d4 {[%clk 00:55:09]} {[%emt 00:00:06]} d6 {[%clk
00:55:25]} {[%emt 00:00:04]} 4. c4 {[%clk 00:53:57]} {[%emt 00:01:18]} Nb6
{[%clk 00:55:32]} {[%emt 00:00:06]} 5. f4 {[%clk 00:53:52]} {[%emt 00:00:15]}
dxe5 {[%clk 00:55:37]} {[%emt 00:00:06]} 6. fxe5 {[%clk 00:53:54]} {[%emt
00:00:07]} Bf5 {[%clk 00:55:41]} {[%emt 00:00:06]} 7. Nf3 {[%clk 00:53:10]}
{[%emt 00:00:54]} e6 {[%clk 00:55:44]} {[%emt 00:00:07]} 8. Be2 {[%clk
00:50:40]} {[%emt 00:02:39]} Nc6 {[%clk 00:55:30]} {[%emt 00:00:26]} 9. O-O
{[%clk 00:44:49]} {[%emt 00:06:01]} Be7 {[%clk 00:55:04]} {[%emt 00:00:36]} 10.
Nc3 {[%clk 00:43:27]} {[%emt 00:01:32]} f6 {[%clk 00:52:43]} {[%emt 00:02:30]}
11. Be3 {[%clk 00:40:55]} {[%emt 00:02:41]} O-O {[%clk 00:51:38]} {[%emt
00:01:16]} 12. Rc1 {[%clk 00:38:37]} {[%emt 00:02:28]} fxe5 {[%clk 00:50:15]}
{[%emt 00:01:34]} 13. dxe5 {[%clk 00:37:07]} {[%emt 00:01:40]} Bg4 {[%clk
00:46:04]} {[%emt 00:04:20]} 14. b3 {[%clk 00:33:24]} {[%emt 00:03:53]} Bxf3
{[%clk 00:36:19]} {[%emt 00:09:54]} 15. Bxf3 {[%clk 00:32:45]} {[%emt
00:00:49]} Bg5 {[%clk 00:36:13]} {[%emt 00:00:16]} 16. Bxg5 {[%clk 00:30:51]}
{[%emt 00:02:05]} Qxg5 {[%clk 00:36:16]} {[%emt 00:00:07]} 17. Bxc6 {[%clk
00:30:41]} {[%emt 00:00:19]} bxc6 {[%clk 00:34:54]} {[%emt 00:01:32]} 18. Qe2
{[%clk 00:29:27]} {[%emt 00:01:10]} Nd7 {[%clk 00:32:05]} {[%emt 00:03:14]} 19.
Rfe1 {[%emt 00:03:54]} Rf5 {[%clk 00:30:37]} {[%emt 00:01:33]} 20. Ne4 {[%clk
00:23:07]} {[%emt 00:02:50]} Qe7 {[%clk 00:26:07]} {[%emt 00:04:40]} 21. Ng3
{[%clk 00:21:41]} {[%emt 00:01:36]} Rxe5 {[%clk 00:25:55]} {[%emt 00:00:23]} 22.
Qd2 {[%clk 00:20:08]} {[%emt 00:01:41]} Rd8 {[%clk 00:23:09]} {[%emt 00:02:57]}
23. Rxe5 {[%clk 00:19:47]} {[%emt 00:00:31]} Nxe5 {[%clk 00:23:13]} {[%emt
00:00:06]} 24. Qe3 {[%clk 00:19:26]} {[%emt 00:00:28]} Ng4 {[%clk 00:22:48]}
{[%emt 00:00:38]} 25. Qxa7 {[%clk 00:15:21]} {[%emt 00:04:15]} Qh4 {[%clk
00:21:10]} {[%emt 00:01:49]} 26. Nf1 {[%clk 00:14:14]} {[%emt 00:01:16]} Rf8
{[%clk 00:19:06]} {[%emt 00:02:15]} 27. h3 {[%clk 00:13:29]} {[%emt 00:00:55]}
Ne5 {[%clk 00:18:38]} {[%emt 00:00:37]} 28. Qe3 {[%clk 00:12:50]} {[%emt
00:00:45]} Qf2+ {[%clk 00:16:46]} {[%emt 00:02:06]} 29. Qxf2 {[%clk 00:12:44]}
{[%emt 00:00:17]} Rxf2 {[%clk 00:16:51]} {[%emt 00:00:05]} 30. Re1 {[%clk
00:11:35]} {[%emt 00:01:18]} Rf5 {[%clk 00:16:46]} {[%emt 00:00:15]} 31. Ng3
{[%clk 00:11:11]} {[%emt 00:00:32]} Rg5 {[%clk 00:16:38]} {[%emt 00:00:21]} 32.
Kh2 {[%clk 00:10:35]} {[%emt 00:00:44]} Kf7 {[%clk 00:16:00]} {[%emt 00:00:49]}
33. a4 {[%clk 00:09:19]} {[%emt 00:01:27]} Nd3 {[%clk 00:15:07]} {[%emt
00:01:02]} 34. Rd1 {[%clk 00:07:55]} {[%emt 00:01:33]} Nc5 {[%clk 00:12:59]}
{[%emt 00:02:20]} 35. b4 {[%clk 00:07:46]} {[%emt 00:00:19]} Nxa4 {[%clk
00:13:05]} {[%emt 00:00:03]} 36. Rd7+ {[%clk 00:07:52]} {[%emt 00:00:04]} Kg6
{[%clk 00:12:00]} {[%emt 00:01:16]} 37. Rxc7 {[%clk 00:07:54]} {[%emt
00:00:08]} c5 {[%clk 00:11:17]} {[%emt 00:00:53]} 38. b5 {[%clk 00:07:56]}
{[%emt 00:00:07]} Nb6 {[%clk 00:09:47]} {[%emt 00:01:40]} 39. Ne4 {[%clk
00:05:07]} {[%emt 00:02:59]} Re5 {[%clk 00:09:51]} {[%emt 00:00:06]} 40. Nd6
{[%clk 00:05:16]} Re1 {[%clk 00:07:57]} {[%emt 00:02:05]} 41. Rc6 {[%clk
00:04:36]} {[%emt 00:00:48]} Nd7 {[%clk 00:07:32]} {[%emt 00:00:36]} 42. b6
{[%clk 00:04:27]} {[%emt 00:00:18]} Rb1 {[%clk 00:07:31]} {[%emt 00:00:13]} 43.
Nb5 {[%clk 00:04:09]} {[%emt 00:00:28]} Nxb6 {[%clk 00:06:25]} {[%emt
00:01:16]} 44. Rxb6 {[%clk 00:04:17]} {[%emt 00:00:02]} Rb4 {[%clk 00:06:26]}
{[%emt 00:00:10]} 45. Rxe6+ {[%clk 00:04:05]} {[%emt 00:00:21]} Kf5 {[%clk
00:06:29]} {[%emt 00:00:07]} 46. Rc6 {[%clk 00:04:05]} {[%emt 00:00:09]} Kf4
{[%clk 00:05:29]} {[%emt 00:01:11]} 47. Rxc5 {[%clk 00:04:11]} {[%emt
00:00:04]} g5 {[%clk 00:05:33]} {[%emt 00:00:06]} 48. Nc7 {[%clk 00:04:11]}
{[%emt 00:00:11]} Rb1 {[%clk 00:05:25]} {[%emt 00:00:18]} 49. Ne6+ {[%clk
00:04:18]} {[%emt 00:00:02]} Ke3 {[%clk 00:05:30]} {[%emt 00:00:05]} 50. Nxg5
{[%clk 00:04:24]} {[%emt 00:00:04]} h5 {[%clk 00:05:32]} {[%emt 00:00:09]} 51.
Nf3 {[%clk 00:04:30]} {[%emt 00:00:03]} 1-0

[Event "NK ABC Kwalificatie 2"]
[Site "Zoetermeer, Netherlands"]
[Date "2025.01.05"]
[Round "6.5"]
[White "Van de Poel, Jona"]
[Black "Smeenk, Merijn"]
[Result "1-0"]
[TimeControl "55+10"]
[WhiteFideId "8707633"]
[BlackFideId "8707919"]
[WhiteElo "1857"]
[BlackElo "1782"]

1. e4 {[%clk 00:55:17]} {[%emt 00:00:02]} c5 {[%clk 00:55:11]} {[%emt
00:00:10]} 2. Nf3 {[%clk 00:55:22]} {[%emt 00:00:05]} Nc6 {[%clk 00:55:15]}
{[%emt 00:00:06]} 3. d4 {[%clk 00:55:21]} {[%emt 00:00:11]} cxd4 {[%clk
00:55:18]} {[%emt 00:00:07]} 4. Nxd4 {[%clk 00:55:25]} {[%emt 00:00:06]} e5
{[%clk 00:55:20]} {[%emt 00:00:08]} 5. Nb5 {[%clk 00:55:15]} {[%emt 00:00:20]}
d6 {[%emt 00:00:23]} 6. c4 {[%clk 00:55:09]} Be6 {[%clk 00:55:21]} {[%emt
00:00:13]} 7. Be2 {[%clk 00:52:51]} {[%emt 00:02:27]} Be7 {[%clk 00:55:14]}
{[%emt 00:00:17]} 8. O-O {[%clk 00:52:06]} {[%emt 00:00:55]} a6 {[%clk
00:54:32]} {[%emt 00:00:52]} 9. N5c3 {[%clk 00:51:35]} {[%emt 00:00:40]} Nf6
{[%clk 00:52:41]} {[%emt 00:02:01]} 10. Bg5 {[%clk 00:43:19]} {[%emt 00:08:26]}
Nd7 {[%clk 00:49:11]} {[%emt 00:03:41]} 11. Bxe7 {[%clk 00:41:13]} {[%emt
00:02:16]} Qxe7 {[%clk 00:48:45]} {[%emt 00:00:36]} 12. Na3 {[%clk 00:39:11]}
{[%emt 00:02:12]} O-O {[%clk 00:42:03]} {[%emt 00:06:52]} 13. Nc2 {[%clk
00:37:11]} {[%emt 00:02:11]} f5 {[%clk 00:31:06]} {[%emt 00:11:07]} 14. Qd2
{[%clk 00:32:40]} {[%emt 00:04:40]} Nc5 {[%clk 00:12:59]} {[%emt 00:18:16]} 15.
Rad1 {[%clk 00:28:23]} {[%emt 00:04:27]} Rad8 {[%clk 00:12:42]} {[%emt
00:00:27]} 16. f3 {[%clk 00:25:59]} {[%emt 00:02:33]} b6 {[%clk 00:09:10]}
{[%emt 00:03:44]} 17. b4 {[%clk 00:25:30]} {[%emt 00:00:38]} Nb7 {[%clk
00:09:16]} {[%emt 00:00:04]} 18. Nd5 {[%clk 00:24:56]} {[%emt 00:00:44]} Qf7
{[%clk 00:07:51]} {[%emt 00:01:35]} 19. Nxb6 {[%clk 00:24:39]} {[%emt
00:00:27]} f4 {[%clk 00:06:47]} {[%emt 00:01:14]} 20. Nd5 {[%clk 00:24:25]}
{[%emt 00:00:24]} h5 {[%clk 00:05:16]} {[%emt 00:01:41]} 21. Kh1 {[%clk
00:23:24]} {[%emt 00:01:12]} g5 {[%clk 00:05:08]} {[%emt 00:00:18]} 22. g3
{[%clk 00:22:35]} {[%emt 00:00:59]} Kh7 {[%clk 00:01:51]} {[%emt 00:03:26]} 23.
Rg1 {[%clk 00:21:47]} {[%emt 00:00:58]} Rg8 {[%clk 00:01:30]} {[%emt 00:00:31]}
24. gxf4 {[%clk 00:19:07]} {[%emt 00:02:50]} gxf4 {[%clk 00:01:26]} {[%emt
00:00:14]} 25. Bd3 {[%clk 00:17:45]} {[%emt 00:01:33]} h4 {[%clk 00:00:48]}
{[%emt 00:00:47]} 26. Qf2 {[%clk 00:17:32]} {[%emt 00:00:23]} Rg3 {[%clk
00:00:14]} {[%emt 00:00:45]} 27. hxg3 {[%clk 00:10:59]} {[%emt 00:06:42]} hxg3
{[%clk 00:00:23]} {[%emt 00:00:02]} 28. Rxg3 {[%clk 00:10:56]} {[%emt
00:00:13]} fxg3 {[%clk 00:00:16]} {[%emt 00:00:16]} 29. Qxg3 {[%clk 00:10:24]}
{[%emt 00:00:42]} Qh5+ {[%clk 00:00:15]} {[%emt 00:00:12]} 30. Qh2 {[%clk
00:09:42]} {[%emt 00:00:51]} Qxh2+ {[%clk 00:00:23]} {[%emt 00:00:02]} 31. Kxh2
{[%clk 00:09:43]} {[%emt 00:00:09]} Rf8 {[%clk 00:00:27]} {[%emt 00:00:07]} 32.
Kg3 {[%clk 00:09:34]} {[%emt 00:00:19]} Kg6 {[%clk 00:00:20]} {[%emt 00:00:16]}
33. f4 {[%clk 00:08:25]} {[%emt 00:01:19]} exf4+ {[%clk 00:00:12]} {[%emt
00:00:19]} 34. Nxf4+ {[%clk 00:08:28]} {[%emt 00:00:06]} Kf6 {[%clk 00:00:18]}
{[%emt 00:00:04]} 35. Be2 {[%clk 00:07:33]} {[%emt 00:01:04]} Ne5 {[%clk
00:00:15]} {[%emt 00:00:14]} 36. Ne3 {[%clk 00:07:00]} {[%emt 00:00:44]} Rg8+
{[%clk 00:00:14]} {[%emt 00:00:10]} 37. Kf2 {[%clk 00:07:01]} {[%emt 00:00:09]}
Rh8 {[%clk 00:00:17]} {[%emt 00:00:08]} 38. Ned5+ {[%clk 00:06:51]} {[%emt
00:00:20]} Bxd5 {[%clk 00:00:11]} {[%emt 00:00:17]} 39. Nxd5+ {[%clk 00:06:53]}
{[%emt 00:00:06]} Kf7 {[%clk 00:00:17]} {[%emt 00:00:04]} 40. Rf1 {[%clk
00:06:17]} {[%emt 00:00:47]} a5 {[%clk 00:00:15]} {[%emt 00:00:11]} 41. Kg3+
{[%clk 00:05:58]} {[%emt 00:00:29]} Ke8 {[%clk 00:00:19]} {[%emt 00:00:06]} 42.
a3 {[%clk 00:05:45]} {[%emt 00:00:24]} axb4 {[%clk 00:00:16]} {[%emt 00:00:13]}
43. axb4 {[%clk 00:05:49]} {[%emt 00:00:06]} Kd7 {[%clk 00:00:24]} {[%emt
00:00:02]} 44. Bg4+ {[%clk 00:04:17]} {[%emt 00:01:41]} Kc6 {[%clk 00:00:33]}
45. Ra1 {[%clk 00:04:23]} {[%emt 00:00:05]} Nxg4 {[%clk 00:00:13]} {[%emt
00:00:29]} 46. Kxg4 {[%clk 00:04:30]} {[%emt 00:00:03]} Rg8+ {[%clk 00:00:21]}
{[%emt 00:00:03]} 47. Kf4 {[%clk 00:04:32]} {[%emt 00:00:08]} Nd8 {[%clk
00:00:27]} {[%emt 00:00:04]} 48. Ne7+ {[%clk 00:04:38]} {[%emt 00:00:05]} 1-0